Cogmind - Beta 12 @@@ ROGUE MODE // 2024.01.08 @ 11:38:55 Player: sasha Result: Destroyed by Y-45 Defender with Heavy Assault Rifle Performance ------------- Evolutions (1) 500 Regions Visited (4) 800 Robots Destroyed (30) 150 Value Destroyed (876) 876 Prototype IDs (1) 20 Alien Tech Used (0) 0 Bonus (27) 27 TOTAL SCORE: 2373 Bonus ------- High Alert Combat Kills 27 Cogmind --------- Core Integrity 0/400 Matter 290/300 Energy 60/100 System Corruption 0% Temperature Cool (14) Movement Flying (35) Location -9/Storage Parts ------- > --- POWER (1) -------- (None) > --- PROPULSION (2) --- VTOL Module > --- UTILITY (4) ------ Improved Targeting Computer System Shield > --- WEAPON (2) ------- Mining Laser Mace > --- INVENTORY (5) ---- Flight Unit VTOL Module Shock Rifle Missile Launcher Peak State ------------ > --- POWER ------------ Ion Engine > --- PROPULSION ------- VTOL Module VTOL Module > --- UTILITY ---------- Improved Heat Sink Improved Targeting Computer System Shield System Shield > --- WEAPON ----------- Shock Rifle Shock Rifle > --- INVENTORY -------- Wheel VTOL Module Improved Targeting Computer Missile Launcher Mining Laser [Rating: 22] Favorites ----------- Power Light Ion Engine Engine Light Ion Engine Power Core Light Nuclear Core Propulsion Aluminum Leg Treads Light Treads Leg Aluminum Leg Wheel Wheel Flight Unit VTOL Module Utility System Shield Device Improved Heat Sink Storage Small Storage Unit Processor Improved Targeting Computer Hackware System Shield Weapon Light Assault Rifle Energy Gun Shock Rifle Energy Cannon Advanced Beam Cannon Ballistic Gun Light Assault Rifle Launcher Missile Launcher Special Weapon Mining Laser Impact Weapon Mace Build | -11 -10 -10 -9 -9 ------- Run | Jun Mat Min Mat Sto Slots Evolved 2 | . . . 2 . Power . | . . . . . Propulsion . | . . . . . Utility 2 | . . . 2 . Weapon . | . . . . . Parts Attached 44 | 6 . 2 33 3 Power 4 | 1 . . 3 . Engine 3 | 1 . . 2 . Core 1 | . . . 1 . Reactor . | . . . . . Propulsion 13 | 2 . 1 10 . Treads 3 | . . . 3 . Leg 3 | 2 . 1 . . Wheel 2 | . . . 2 . Hover . | . . . . . Flight 5 | . . . 5 . Utility 7 | 1 . 1 3 2 Device 3 | . . 1 . 2 Storage 1 | 1 . . . . Processor 1 | . . . 1 . Hackware 2 | . . . 2 . Protection . | . . . . . Artifact . | . . . . . Weapon 20 | 2 . . 17 1 Energy Gun 7 | . . . 7 . Energy Cannon 2 | . . . 2 . Ballistic Gun 4 | 2 . . 2 . Ballistic Cannon . | . . . . . Launcher 4 | . . . 4 . Special Weapon 1 | . . . . 1 Impact Weapon 2 | . . . 2 . Slashing Weapon . | . . . . . Piercing Weapon . | . . . . . Special Melee Weapon . | . . . . . Unidentified Prototypes 1 | . . . 1 . Parts Lost 11 | . . . 8 3 Power 3 | . . . 2 1 Propulsion 4 | . . . 3 1 Utility 1 | . . . . 1 Weapon 3 | . . . 3 . Highest Loss Streak 3 | . . . 3 3 To Critical Strikes . | . . . . . Average Slot Usage (%) 84 | . 85 91 85 79 Engine 10 | . 14 14 8 10 Treads 1 | . . . 3 . Leg 12 | . 28 28 9 . Flight 8 | . . . 8 21 Device 6 | . . 6 11 3 Storage 7 | . 14 14 6 . Processor 4 | . . . 4 11 Hackware 14 | . . . 19 21 Energy Gun 3 | . . . 6 . Energy Cannon 2 | . . . 4 . Ballistic Gun 9 | . 28 28 2 . Impact Weapon 2 | . . . . 11 Naked Turns . | . . . . . Heaviest Build 18 | 11 11 12 18 13 Greatest Support 40 | 20 20 20 40 8 Greatest Overweight (x) 5 | 1 . . 5 1 Average Overweight (x) . | . . . . . Largest Inventory Capacity 8 | 8 8 8 8 5 Average Capacity 6 | 7 8 8 6 5 Most Carried 8 | 7 6 8 8 5 Average Carried 5 | 4 4 7 6 4 Final Capacity 8 | 8 8 8 5 5 Final Carried 8 | 4 6 8 5 4 Class Distribution -------------------- 48% | Hacker-Mutant 35% | Mutant 15% | Hacker-Sprinter Dominant Class ---------------- Mutant | -10/Materials Mutant | -10/Mines Hacker-Mutant | -9/Materials Hacker-Sprinter | -9/Storage Resources | -11 -10 -10 -9 -9 ----------- Run | Jun Mat Min Mat Sto Matter Collected 793 | 152 34 83 494 30 Remotely . | . . . . . Salvage Created 1018 | . 34 83 843 58 Parts 57 | . 2 6 49 . Haulers Intercepted 1 | . . . 1 . Recyclers Shooed . | . . . . . Parts Field Recycled . | . . . . . Retrieved Matter . | . . . . . Parts Self-Destructed . | . . . . . Prevented . | . . . . . Kills | -11 -10 -10 -9 -9 ------- Run | Jun Mat Min Mat Sto Combat Hostiles Destroyed 24 | . 2 2 20 . Guns 9 | . 2 2 5 . Cannons 9 | . . . 9 . AOE 5 | . . . 5 . Classes Destroyed 9 | . 1 1 6 1 Builder 2 | . . . 2 . Hauler 1 | . . . 1 . Recycler 1 | . . . . 1 Watcher 2 | . . . 2 . Swarmer 6 | . 2 . 4 . Grunt 10 | . . 2 8 . Brawler 1 | . . . 1 . Duelist 1 | . . . 1 . Sentry 6 | . . . 6 . Best Kill Streak 4 | . 2 2 4 1 Combat Bots Only 4 | . 2 2 4 . Max Kills in Single Turn 3 | . 1 1 3 1 Gunslinging . | . . . . . Exploded 1 | . . . 1 . Melee . | . . . . . Uniques/NPCs Destroyed . | . . . . . Combat | -11 -10 -10 -9 -9 -------- Run | Jun Mat Min Mat Sto Damage Taken 1767 | . 68 137 1293 269 Core 457 | . 8 35 278 136 Absorbed by Shields . | . . . . . Core Remaining (%) 91 | 100 . 82 . . Volleys Fired 112 | . 9 6 96 1 Largest 2 | . 2 2 2 1 Hottest 104 | . 40 40 104 100 Shots Fired 147 | . 18 12 116 1 Gun 91 | . 18 12 61 . Cannon 46 | . . . 46 . Launcher 9 | . . . 9 . Special 1 | . . . . 1 Kinetic 46 | . 18 12 16 . Thermal 47 | . . . 46 1 Explosive 9 | . . . 9 . Electromagnetic 45 | . . . 45 . Robot Hit Streak 12 | . 6 6 12 . Robot Miss Streak 4 | . 2 2 4 . Penetration Max . | . . . . . Secondary Targets . | . . . . . Shots Hit Robots 98 | . 11 9 76 2 Core Hits 38 | . 3 5 30 . Critical Kills . | . . . . . Critical Parts Destroyed . | . . . . . Critical Strikes . | . . . . . Melee Attacks 3 | . . . . 3 Impact 3 | . . . . 3 Slashing . | . . . . . Piercing . | . . . . . Sneak Attacks 1 | . . . . 1 Combat Hostiles . | . . . . . Follow-up Attacks . | . . . . . Damage Inflicted 2120 | 3 109 98 1798 112 Guns 745 | . 109 98 538 . Cannons 721 | . . . 721 . Explosions 539 | . . . 539 . Melee 112 | . . . . 112 Ramming 3 | 3 . . . . Kinetic 274 | . 109 98 67 . Thermal 959 | . . . 959 . Explosive 301 | . . . 301 . Electromagnetic 471 | . . . 471 . Impact 112 | . . . . 112 Slashing . | . . . . . Piercing . | . . . . . Highest Corruption . | . . . . . Average Corruption . | . . . . . Corruption Purged . | . . . . . Corruption Blocked . | . . . . . Overload Shots . | . . . . . Overflow Damage 154 | . . . 99 55 Projectiles 2 | . . . 2 . Explosions 97 | . . . 97 . Melee 55 | . . . . 55 Knockbacks 1 | . . . . 1 Impact 1 | . . . . 1 Kinetic . | . . . . . Secondary . | . . . . . Self-Inflicted Damage 198 | . . . 198 . Shots 5 | . . . 5 . Rammed . | . . . . . Targets Rammed 1 | 1 . . . . Kicked 1 | 1 . . . . Crushed . | . . . . . Highest Temperature 18 | . 6 18 17 7 Average Temperature 7 | . 6 11 5 6 Received Heat Transfer 567 | . 18 72 387 90 Siege Activations . | . . . . . Robots Corrupted 1 | . . . 1 . Combat Hostiles 1 | . . . 1 . Parts Fried 5 | . . . 4 1 Impact Corruptions 2 | . . . . 2 Robots Melted . | . . . . . Combat Hostiles . | . . . . . Parts Melted 1 | . . . 1 . Heat Transferred 1495 | . . . 1495 . Parts Sabotaged . | . . . . . Parts Stolen . | . . . . . Parts Stripped . | . . . . . Power Chain Reactions 1 | . . . 1 . Missiles Intercepted . | . . . . . Alert | -11 -10 -10 -9 -9 ------- Run | Jun Mat Min Mat Sto Peak Influence 476 | . 40 65 476 215 Initial 200 | . . 15 25 200 Average 138 | . 4 55 219 113 Maximum Alert Level 2 | . . . 2 1 Low Security (%) 71 | 100 100 100 54 75 Level 1 13 | . . . 17 24 Level 2 15 | . . . 28 . Level 3 . | . . . . . Level 4 . | . . . . . Level 5 . | . . . . . High Security . | . . . . . Max Security . | . . . . . Squads Dispatched 6 | . 3 . 1 2 Investigation 5 | . 2 . 1 2 Extermination . | . . . . . Reinforcement 1 | . 1 . . . Assault . | . . . . . Garrison . | . . . . . Intercept . | . . . . . Searches Triggered . | . . . . . Construction Impeded . | . . . . . Haulers Reinforced . | . . . . . Active Scanning Responses . | . . . . . Cargo Convoy Interrupts . | . . . . . Stealth | -11 -10 -10 -9 -9 --------- Run | Jun Mat Min Mat Sto Distress Signals 2 | . . . 1 1 Communications Jammed . | . . . . . Distress Signals . | . . . . . Times Spotted 44 | . 5 2 31 6 Peak Tracking Total 7 | . 2 2 7 5 Tactical Retreats 2 | . . . 2 . Traps | -11 -10 -10 -9 -9 ------- Run | Jun Mat Min Mat Sto Traps Triggered 3 | . 1 . 1 1 Indirectly . | . . . . . Trap Hack Attempts . | . . . . . Triggered . | . . . . . Disarmed . | . . . . . Reprogrammed . | . . . . . Reused . | . . . . . Traps Extracted . | . . . . . Installed . | . . . . . Triggered . | . . . . . Machines | -11 -10 -10 -9 -9 ---------- Run | Jun Mat Min Mat Sto Machines Disabled 6 | . . . 6 . Max in Single Turn 2 | . . . 2 . Machines Repaired . | . . . . . Machines Sabotaged . | . . . . . Overloaded Fab Kills . | . . . . . Hacking | -11 -10 -10 -9 -9 --------- Run | Jun Mat Min Mat Sto Machines Accessed 10 | . 1 . 4 5 Terminals 10 | . 1 . 4 5 Fabricators . | . . . . . Repair Stations . | . . . . . Recycling Units . | . . . . . Scanalyzers . | . . . . . Garrison Access . | . . . . . Total Hacks 27 | . 2 . 11 14 Successful 9 | . 1 . 1 7 Failed 18 | . 1 . 10 7 Catastrophic 7 | . 1 . 5 1 Database Lockouts . | . . . . . Manual 15 | . 2 . 11 2 Terminals 27 | . 2 . 11 14 Fabricators . | . . . . . Repair Stations . | . . . . . Recycling Units . | . . . . . Scanalyzers . | . . . . . Garrison Access . | . . . . . Terminal Hacks 9 | . 1 . 1 7 Open Door 2 | . . . . 2 Branch Access Points 2 | . 1 . 1 . Alert Level 2 | . . . . 2 Unreport Threat 1 | . . . . 1 Dispatch Records 1 | . . . . 1 Investigation Status 1 | . . . . 1 Fabricator Hacks . | . . . . . Repair Station Hacks . | . . . . . Recycling Unit Hacks . | . . . . . Scanalyzer . | . . . . . Garrison Access Hacks . | . . . . . Unauthorized Hacks . | . . . . . Terminals . | . . . . . Fabricators . | . . . . . Repair Stations . | . . . . . Recycling Units . | . . . . . Scanalyzers . | . . . . . Garrison Access . | . . . . . Data Cores Recovered . | . . . . . Used . | . . . . . Hacking Detections 5 | . 1 . 3 1 Full Trace Events 2 | . 1 . . 1 Feedback Events . | . . . . . Feedback Blocked . | . . . . . Robot Schematics Acquired . | . . . . . Robots Built . | . . . . . Authchips . | . . . . . Time . | . . . . . Total Robot Build Rating . | . . . . . Part Schematics Acquired . | . . . . . Parts Built . | . . . . . Authchips . | . . . . . Time . | . . . . . Total Part Build Rating . | . . . . . Parts Repaired . | . . . . . Time . | . . . . . Parts Recycled . | . . . . . Recycled Matter . | . . . . . Retrieved Matter . | . . . . . Retrieved Components . | . . . . . Parts Scanalyzed . | . . . . . Part Schematics Acquired . | . . . . . Parts Damaged . | . . . . . Bothacking | -11 -10 -10 -9 -9 ------------ Run | Jun Mat Min Mat Sto Used RIF Installer . | . . . . . Robots Hacked . | . . . . . Non-combat . | . . . . . Combat . | . . . . . Robot Hacks Applied . | . . . . . Relay Couplers Released . | . . . . . Fabnet Peak Effective % . | . . . . . Robots Rewired . | . . . . . Allies Hacked . | . . . . . Hacks Repelled . | . . . . . Allies | -11 -10 -10 -9 -9 -------- Run | Jun Mat Min Mat Sto Total Allies . | . . . . . Largest Group . | . . . . . Highest-Rated Group . | . . . . . Highest-Rated Ally . | . . . . . Total Orders . | . . . . . Ally Attacks . | . . . . . Total Damage . | . . . . . Kills . | . . . . . Allies Corrupted . | . . . . . Allies Melted . | . . . . . Intel | -11 -10 -10 -9 -9 ------- Run | Jun Mat Min Mat Sto Robot Analysis Total . | . . . . . Derelict Logs Recovered . | . . . . . Drone Launches 16 | . . . . 16 Drone Recoveries 2 | . . . . 2 Exploration | -11 -10 -10 -9 -9 ------------- Run | Jun Mat Min Mat Sto Turns Passed 1971 | 66 462 65 1033 345 Spaces Moved 1278 | 37 106 33 826 276 Core 18 | 17 . . 1 . Treads 22 | . . . 22 . Legs 437 | 20 106 33 278 . Wheels 56 | . . . 56 . Hover . | . . . . . Flight 745 | . . . 469 276 Fastest Speed 32 | 50 120 120 32 32 Average Speed 76 | 111 120 120 82 34 Slowest Speed 300 | 190 120 120 300 112 Overloaded Moves . | . . . . . Propulsion Burnouts . | . . . . . Robots Hopped 3 | . . . 3 . Cave-ins Triggered . | . . . . . Exploration Rate (%) 29 | 3 23 16 58 46 Regions Visited 4 Branch Regions 2 Pre-discovered Areas . | . . . . . Known Exits Taken 2 | . 1 . 1 . Unknown Exits Taken 2 | 1 . 1 . . Scrap Searched . | . . . . . Spaces Dug 1 | . . . . 1 Terrain Destroyed 110 | . . . 109 1 Melee . | . . . . . Projectile 1 | . . . . 1 AOE 109 | . . . 109 . Terrain Rammed . | . . . . . Walls Destroyed . | . . . . . Machines Disabled . | . . . . . Actions | -11 -10 -10 -9 -9 --------- Run | Jun Mat Min Mat Sto Total 2118 | 61 424 47 1069 517 Wait 615 | 8 308 3 72 224 Move 1268 | 36 105 32 819 276 Hop 3 | . . . 3 . Pick Up 30 | 10 2 3 15 . Fast Attach 15 | . . 1 12 2 Attach 24 | 6 . . 17 1 Detach 9 | . . . 9 . Swap 5 | . . 1 4 . Drop 26 | . . 1 22 3 Fire 112 | . 9 6 96 1 Melee 3 | . . . . 3 Ram . | . . . . . Kick 1 | 1 . . . . Crush . | . . . . . Escape Stasis . | . . . . . Rewire . | . . . . . Trap . | . . . . . Miscellaneous 7 | . . . . 7 Route ------- -11/Junkyard -10/Materials -10/Mines -9/Materials (discovered 4 exits: [*Mat] / *Min x2 / *Sto) -9/Storage History --------- Turn | Location | Event 10 | -11/Junkyard | Discovered new exit (range 15) 67 | -11/Junkyard | Entered Materials 315 | -10/Materials | Build established: Mutant 463 | -10/Materials | Identified exit to Mines 529 | -10/Materials | Entered Mines 577 | -10/Mines | Discovered new exit (range 14) 594 | -10/Mines | Entered Materials 594 | -9/Materials | Evolved 2 slots: Utility x2 961 | -9/Materials | Identified exit to Mines 961 | -9/Materials | Identified exit to Storage 1008 | -9/Materials | Build established: Hacker-Mutant 1052 | -9/Materials | Lost 3 parts (1p1n1w) 1217 | -9/Materials | Core integrity fell below 50% 1565 | -9/Materials | Discovered new exit (range 15) 1627 | -9/Materials | Entered Storage 1965 | -9/Storage | Core integrity fell below 20% 1972 | -9/Storage | Destroyed by Y-45 Defender with Heavy Assault Rifle Last Messages --------------- 01888_ R-06 Scavenger system terminally corrupted. 01888_ Com. Wheel fried. 01892_ Triggered Alarm Trap. 01892_ An alarm sounds. 01892_ ALERT: Alarm triggered, dispatching investigation squad. 01906_ Connecting with Terminal... >>Alert(Purge) Purged threat record, alert level lowered. >>Alert(Check) Current Alert Level: Low Security 01918_ Connecting with Door Terminal... >>Open(Door) Sealed Heavy Doors opened. 01924_ T-07 Excavator is excavating. 01956_ System Shield destroyed. 01958_ T-07 Excavator is excavating. 01961_ VTOL Module destroyed. 01962_ T-07 Excavator is excavating. 01967_ Ion Engine destroyed. 01971_ T-07 Excavator is excavating. Map ----- +----------------------------------------------------+ | | | | | ????????????????????????????????????????????? | | ????????????????????????????????????????????? | | ????????????????????????????????????????????? | | ????????????????????????????????????????????? | | ????????????????????????????????????????????? | | ????????????????????????????????????????????? | | ????????????????????????????????????????????? | | ????????????????????????????????????????????? | | ????????????????????????????????????????????? | | ????????????????????????????????????????????? | | ????????????????????????????????????????????? | | ????????????????????????????????????????????? | | ????????????????????????????????????????????? | | ????????????????????????????????????????????? | | ????????????????????????????????????????????? | | ????????????????????????????????????????????? | | ???????##########???????????????????????????? | | ???????# ####????????????????????????? | | ???????# """#????????????????????????? | | ???????# """" R"#????????????????????????? | | ???????# """" """#????????????????????????? | | ???????# """" ####????????????????????????? | | ???????# """" # #######??????????????????? | | ???????# + Y;@ #??????????????????? | | ?####?# # YY t##??????????????????? | | ?#!! ## # # #???????????????????? | | ?#!! ##+##+##### ######???????????????????? | | ?#!! + Y Y #????????????????????????? | | ???##T# #????????????????????????? | | ????### ###########????????????????????????? | | ??????# #??????????????????????????????????? | | ?###??# ##########?????????????????????????? | | ? ??# # #?????????????????????????? | | # """?# # " #?????????????????????????? | | # """?# # T #?????????????????????????? | | # """ # # " """ #?????????????????????????? | | # # # """ #?????????????????????????? | | # + # """ #?????????????????????????? | | #=!! # # """ #?????????????????????????? | | #=!! # / """ #?????????????????????????? | | #!! ?# # #?????????????????????????? | | # ?# ####+#####??????????????????+ ????? | | # ??# #??????????????????????# ????? | | # "T??# #??????????????????????# ???? | | #####?# ### #??????????????????????# ???? | | # # #?# #??????????????????????# ???? | | # # #?# ########???????????????# ##+# | | # """ + #?# +????????????# | +----------------------------------------------------+ Best States ------------- Heat Dissipation 42 Energy Generation 14 Energy Capacity 250 Matter Stores 300 Matter Capacity 300 Sight Range 16 Terrain Scan Density 10 Evasion (%) 63 Targeting Accuracy 6 Recoil Reduction 2 Defensive Hacking 20 Item Schematics ----------------- None Robot Schematics ------------------ None Fabricated ------------ Nothing Alien Tech Used ----------------- None Achievements -------------- Release The Drones! Challenges ------------ None Game ------ Seed CoolingCloakDatajack Manual? 0 Play Time 00:27:15 Cumulative 59.7 hours Start 2024.01.08 @ 11:14:23 End 2024.01.08 @ 11:38:55 Sessions 1 Manual Loads 0 Difficulty Rogue Special Mode None Game No. 76 Rogue 76 Adventurer 0 Explorer 0 Win Type - Total 0 Types 0/0/0/0/0/0/0/0/0 Lore% 31 Gallery% 39 Achievement% 32 Wizard Run 0 Options --------- ASCII 0 Keyboard 0 Movement Mouse Keybinds 0 Fullscreen 2 Font 24/Smallcaps Map View 76x50 Tactical HUD 1 Map Filters NONE Filters NONE Steam 1 RUN: da9031f6-d1ed-4d58-bcea-4bc66707531b